fUSD/lending_fUSD_20251201
["ID","MTS","AMOUNT","RATE_DAILY","PERIOD"]
[395292686,1764589303751,-500.0,0.00042106,120]
[395292687,1764589303804,-1995.84,0.00042106,120]
[395292688,1764589303861,-500.0,0.00042106,120]
[395292689,1764589303916,-500.0,0.00042106,120]
[395292690,1764589303974,-549.49686279,0.00042106,120]
[395292691,1764589304036,-500.0,0.00042106,120]
[395292692,1764589304091,-1099.72,0.00042106,120]
[395292693,1764589304144,-1821.2,0.00042106,120]
[395292694,1764589304198,-500.0,0.00042106,120]
[395292695,1764589304249,-500.0,0.00042106,120]
[395292696,1764589304302,-500.0,0.00042106,120]
[395292697,1764589304353,-500.0,0.00042106,120]
[395292698,1764589304406,-1099.72,0.00042106,120]
[395292699,1764589304456,-1821.2,0.00042106,120]
[395292700,1764589304504,-500.0,0.00042106,120]
[395292701,1764589304553,-1995.84,0.00042106,120]
[395292702,1764589304605,-500.0,0.00042106,120]
[395292703,1764589304654,-588.08736211,0.00042106,120]
[395292704,1764589304707,-500.0,0.00042106,120]
[395292705,1764589304758,-1099.72,0.00042106,120]
[395292706,1764589304809,-1821.2,0.00042106,120]
[395292707,1764589304862,-1995.84,0.00042106,120]
[395292708,1764589304918,-500.0,0.00042106,120]
[395292709,1764589304970,-500.0,0.00042106,120]
[395292710,1764589305022,-500.0,0.00042106,120]
[395292711,1764589305073,-1099.72,0.00042106,120]
[395292712,1764589305124,-1995.84,0.00042106,120]
[395292713,1764589305175,-500.0,0.00042106,120]
[395292714,1764589305229,-1821.2,0.00042106,120]
[395292715,1764589305284,-500.0,0.00042106,120]
[395292716,1764589305346,-1099.72,0.00042106,120]
[395292717,1764589305408,-1995.84,0.00042106,120]
[395292718,1764589305463,-1821.2,0.00042106,120]
[395292719,1764589305511,-500.0,0.00042106,120]
[395292720,1764589305560,-460.58351162,0.00042106,120]
[395292721,1764589305610,-1099.72,0.00042106,120]
[395292722,1764589305661,-1995.84,0.00042106,120]
[395292723,1764589305715,-1821.2,0.00042106,120]
[395292724,1764589305765,-500.0,0.00042106,120]
[395292725,1764589305817,-1099.74758824,0.00042106,120]
[395292726,1764589305870,-1995.84,0.00042106,120]
[395292727,1764589305925,-1821.2,0.00042106,120]
[395292728,1764589305977,-500.0,0.00042106,120]
[395292729,1764589306034,-272.99929403,0.00042106,120]
[395292730,1764589306091,-1995.84120174,0.00042106,120]
[395292731,1764589306147,-1821.2,0.00042106,120]
[395292732,1764589306202,-500.0,0.00042106,120]
[395292733,1764589306254,-500.0,0.00042106,120]
[395292734,1764589306309,-1821.2,0.00042106,120]
[395292735,1764589306365,-500.0,0.00042106,120]
[395292736,1764589306422,-500.0,0.00042106,120]
[395292737,1764589306473,-1821.2,0.00042106,120]
[395292738,1764589306523,-500.0,0.00042106,120]
[395292739,1764589306574,-500.0,0.00042106,120]
[395292740,1764589306625,-1821.24584984,0.00042106,120]
[395292741,1764589306675,-500.0,0.00042106,120]
[395292742,1764589306732,-500.0,0.00042106,120]
[395292743,1764589306792,-500.0,0.00042106,120]
[395292744,1764589306847,-500.0,0.00042106,120]
[395292745,1764589306902,-500.0,0.00042106,120]
[395292746,1764589306957,-500.0,0.00042106,120]
[395292747,1764589307007,-500.0,0.00042106,120]
[395292748,1764589307056,-500.0,0.00042106,120]
[395292749,1764589307106,-500.0,0.00042106,120]
[395292750,1764589307161,-500.0,0.00042106,120]
[395292751,1764589307217,-97.64245447,0.00042106,120]
[395292753,1764589439029,-195.0,0.00013893,2]
[395292754,1764589439051,-195.0,0.00013897,2]
[395292755,1764589439071,-1031.11231964,0.00013902,2]
[395292756,1764589439091,-195.0,0.00014116,2]
[395292757,1764589439112,-300.0,0.00014159,2]
[395292758,1764589439132,-195.0,0.0001416,2]
[395292759,1764589439153,-193.0,0.0001416,2]
[395292760,1764589439173,-300.0,0.0001416,2]
[395292761,1764589439195,-300.0,0.0001416,2]
[395292762,1764589439219,-300.0,0.0001416,2]
[395292763,1764589439241,-300.0,0.0001416,2]
[395292764,1764589439264,-300.0,0.0001416,2]
[395292765,1764589439284,-300.0,0.0001416,2]
[395292766,1764589439307,-300.0,0.0001416,2]
[395292767,1764589439328,-320.95670199,0.0001416,2]
[395292768,1764589439349,-250.0,0.00014466,2]
[395292769,1764589439370,-182.79,0.00014635,2]
[395292770,1764589439391,-246.55,0.00014754,2]
[395292771,1764589439411,-1852.42,0.00014808,2]
[395292772,1764589439431,-9999.99,0.00014808,2]
[395292773,1764589439452,-300.0,0.00015138,2]
[395292774,1764589439473,-500.0,0.00015139,2]
[395292775,1764589439495,-500.0,0.00015139,2]
[395292776,1764589439515,-500.0,0.00015139,2]
[395292777,1764589439536,-500.0,0.00015139,2]
[395292778,1764589439557,-161.54653513,0.00015139,2]
[395292779,1764589439577,-500.0,0.00015139,2]
[395292780,1764589439598,-500.0,0.00015139,2]
[395292781,1764589439619,-421.94,0.00015139,2]
[395292782,1764589439640,-500.0,0.00015139,2]
[395292783,1764589439660,-428.02188527,0.00015139,2]
[395292784,1764589439681,-500.0,0.00015139,2]
[395292785,1764589439703,-500.0,0.00015139,2]
[395292786,1764589439724,-343.53785786,0.00015139,2]
[395292787,1764589439745,-620.16,0.00015139,2]
[395292788,1764589439766,-238.60108626,0.00015139,2]
[395292789,1764589439787,-500.0,0.00015139,2]
[395292790,1764589439809,-500.0,0.00015139,2]
[395292791,1764589439831,-500.0,0.00015139,2]
[395292792,1764589439852,-500.0,0.00015139,2]
[395292793,1764589439876,-500.0,0.00015139,2]
[395292794,1764589439899,-500.0,0.00015139,2]
[395292795,1764589439920,-11928.00138353,0.0001515,2]
[395292796,1764589439943,-500.0,0.000152,2]
[395292797,1764589439966,-500.0,0.000152,2]
[395292798,1764589440302,-284.74869972,0.000152,2]
[395292799,1764589440324,-170.74226421,0.000152,2]
[395292800,1764589440344,-580.08664606,0.000152,2]
[395292801,1764589440366,-248.12344906,0.00015201,2]
[395292802,1764589440388,-99.78877127,0.00015201,2]
[395292803,1764589500073,-214.91,0.00014867,2]
[395292804,1764589500094,-300.0,0.00015201,2]
[395292805,1764589500116,-195.0,0.00015201,2]
[395292806,1764589500138,-400.21122873,0.00015201,2]
[395292807,1764589500160,-500.0,0.00015201,2]
[395292808,1764589500184,-195.0,0.00015224,2]
[395292809,1764589500207,-300.0,0.00015233,2]
[395292810,1764589500230,-300.0,0.00015233,2]
[395292811,1764589500251,-300.0,0.00015233,2]
[395292812,1764589500272,-500.0,0.00015241,2]
[395292813,1764589500297,-500.0,0.00015241,2]
[395292814,1764589500319,-2000.0,0.00015242,2]
[395292815,1764589500340,-2000.0,0.00015242,2]
[395292816,1764589500362,-2000.0,0.00015242,2]
[395292817,1764589500383,-2000.0,0.00015242,2]
[395292818,1764589500404,-2000.0,0.00015242,2]
[395292819,1764589500425,-2000.0,0.00015242,2]
[395292820,1764589500446,-1297.37,0.00015242,2]
[395292821,1764589500467,-1000.0,0.00015242,2]
[395292822,1764589500487,-1000.0,0.00015242,2]
[395292823,1764589500508,-1000.0,0.00015242,2]
[395292824,1764589500528,-1000.0,0.00015242,2]
[395292825,1764589500549,-300.971,0.00015242,2]
[395292826,1764589500570,-195.0,0.00015282,2]
[395292827,1764589500592,-999.0,0.00015289,3]
[395292828,1764589500614,-174.0,0.00015422,2]
[395292829,1764589500635,-150.99,0.00015422,2]
[395292830,1764589500657,-1289.46,0.00015422,2]
[395292831,1764589500678,-999.99,0.00015422,2]
[395292832,1764589500698,-246.55,0.00015574,2]
[395292833,1764589500718,-248.71531821,0.00015635,2]
[395292834,1764589500739,-300.0,0.00015635,2]
[395292835,1764589500759,-1485.83735201,0.00015648,2]
[395292836,1764589500780,-812.0,0.00015717,2]
[395292837,1764589500801,-577.45590105,0.00015751,2]
[395292838,1764589507780,-500.0,0.00012873,2]
[395292839,1764589507802,-1000.0,0.00013421,2]
[395292840,1764589507839,-200.0,0.00015028,2]
[395292841,1764589507861,-300.0,0.00015241,2]
[395292842,1764589507884,-300.0,0.00015241,2]
[395292843,1764589507906,-300.0,0.00015241,2]
[395292844,1764589507929,-1200.0,0.00015241,2]
[395292845,1764589507951,-140.41524193,0.00015751,2]
[395292846,1764589507973,-269.0,0.00015798,2]
[395292847,1764589507994,-150.0,0.00015798,2]
[395292848,1764589508020,-500.0,0.00015799,2]
[395292849,1764589508046,-500.0,0.00015799,2]
[395292850,1764589508072,-500.0,0.00015799,2]
[395292851,1764589508098,-500.0,0.00015799,2]
[395292852,1764589508123,-500.0,0.00015799,2]
[395292853,1764589508148,-500.0,0.00015799,2]
[395292854,1764589508172,-500.0,0.00015799,2]
[395292855,1764589508197,-500.0,0.00015799,2]
[395292856,1764589508222,-500.0,0.00015799,2]
[395292857,1764589508246,-500.0,0.00015799,2]
[395292858,1764589508284,-500.0,0.00015799,2]
[395292859,1764589508309,-500.0,0.00015799,2]
[395292860,1764589508335,-500.0,0.00015799,2]
[395292861,1764589508362,-500.0,0.00015799,2]
[395292862,1764589508386,-500.0,0.00015799,2]
[395292863,1764589508412,-500.0,0.00015799,2]
[395292864,1764589508438,-500.0,0.00015799,2]
[395292865,1764589508462,-500.0,0.00015799,2]
[395292866,1764589508487,-500.0,0.00015799,2]
[395292867,1764589508511,-500.0,0.00015799,2]
[395292868,1764589508536,-500.0,0.00015799,2]
[395292869,1764589508561,-500.0,0.00015799,2]
[395292870,1764589508587,-154.10499398,0.00015799,2]
[395292871,1764589508613,-500.0,0.00015799,2]
[395292872,1764589508639,-500.0,0.00015799,2]
[395292873,1764589508664,-500.0,0.00015799,2]
[395292874,1764589508689,-500.0,0.00015799,2]
[395292875,1764589508720,-500.0,0.00015799,2]
[395292876,1764589508751,-500.0,0.00015799,2]
[395292877,1764589508778,-500.0,0.00015799,2]
[395292878,1764589508805,-500.0,0.00015799,2]
[395292879,1764589508831,-500.0,0.00015799,2]
[395292880,1764589508855,-235.3283,0.000158,2]
[395292881,1764589508879,-157.00464788,0.000158,2]
[395292882,1764589508902,-219.14168902,0.000158,2]
[395292883,1764589508925,-1019.1883319,0.000158,2]
[395292884,1764589508948,-2500.0,0.000158,2]
[395292885,1764589508973,-2612.61819264,0.000158,2]
[395292886,1764589508997,-222.76990664,0.00015849,2]
[395292887,1764589509020,-1094.64,0.0001585,2]
[395292888,1764589509042,-153.85513535,0.0001585,2]
[395292889,1764589509064,-500.0,0.0001585,2]
[395292890,1764589509088,-199.84444829,0.0001585,2]
[395292891,1764589509111,-219.14168901,0.0001585,2]
[395292892,1764589509133,-500.0,0.0001585,2]
[395292893,1764589509156,-150.0,0.0001585,2]
[395292894,1764589509179,-150.0,0.0001585,2]
[395292895,1764589509204,-52.94742336,0.0001585,2]
[395292896,1764589511111,-300.0,0.0001416,2]
[395292897,1764589511134,-195.0,0.00014388,2]
[395292898,1764589511156,-300.0,0.00014617,2]
[395292899,1764589511177,-300.0,0.00014617,2]
[395292900,1764589511199,-300.0,0.00014617,2]
[395292901,1764589511221,-195.0,0.00015576,2]
[395292902,1764589511243,-447.05257664,0.0001585,2]
[395292903,1764589511264,-150.0,0.0001585,2]
[395292904,1764589511287,-500.0,0.0001585,2]
[395292905,1764589511309,-150.0,0.0001585,2]
[395292906,1764589511331,-500.0,0.0001585,2]
[395292907,1764589511352,-160.09225976,0.0001585,2]
[395292908,1764589511376,-501.27985406,0.0001585,2]
[395292909,1764589511398,-507.99167839,0.0001585,2]
[395292910,1764589511419,-422.93496155,0.0001585,2]
[395292911,1764589511440,-160.18575084,0.0001585,2]
[395292912,1764589511463,-500.2924213,0.0001585,2]
[395292913,1764589511487,-160.0931227,0.0001585,2]
[395292914,1764589511510,-373.31164474,0.0001585,2]
[395292915,1764589511532,-500.8147809,0.0001585,2]
[395292916,1764589511553,-500.0,0.0001585,2]
[395292917,1764589511575,-500.0,0.0001585,2]
[395292918,1764589511599,-306.16890781,0.0001585,2]
[395292919,1764589511620,-200.09019976,0.0001585,2]
[395292920,1764589511642,-500.0,0.0001585,2]
[395292921,1764589511663,-500.0,0.0001585,2]
[395292922,1764589511687,-162.15790222,0.0001585,2]
[395292923,1764589511709,-160.09781887,0.0001585,2]
[395292924,1764589511731,-332.16239915,0.0001585,2]
[395292925,1764589511754,-179.09525737,0.0001585,2]
[395292926,1764589511779,-160.09781138,0.0001585,2]
[395292927,1764589511803,-500.0,0.0001585,2]
[395292928,1764589511826,-161.57369762,0.0001585,2]
[395292929,1764589511851,-500.0,0.0001585,2]
[395292930,1764589511874,-500.0,0.0001585,2]
[395292931,1764589511895,-500.0,0.0001585,2]
[395292932,1764589511916,-500.0,0.0001585,2]
[395292933,1764589511938,-333.57957552,0.0001585,2]
[395292934,1764589511959,-504.71228777,0.0001585,2]
[395292935,1764589511980,-586.42715679,0.0001585,2]
[395292936,1764589512002,-500.0,0.0001585,2]
[395292937,1764589512023,-500.0,0.0001585,2]
[395292938,1764589512045,-500.0,0.0001585,2]
[395292939,1764589512067,-500.0,0.0001585,2]
[395292940,1764589512090,-160.09479154,0.0001585,2]
[395292941,1764589512112,-500.0,0.0001585,2]
[395292942,1764589512133,-500.0,0.0001585,2]
[395292943,1764589512154,-500.0,0.0001585,2]
[395292944,1764589512175,-500.0,0.0001585,2]
[395292945,1764589512197,-500.0,0.0001585,2]
[395292946,1764589512218,-500.0,0.0001585,2]
[395292947,1764589512240,-595.94847156,0.0001585,2]
[395292948,1764589512263,-500.0,0.0001585,2]
[395292949,1764589512287,-500.0,0.0001585,2]
[395292950,1764589512308,-500.0,0.0001585,2]
[395292951,1764589512331,-500.0,0.0001585,2]
[395292952,1764589512353,-500.0,0.0001585,2]
[395292953,1764589512378,-500.0,0.0001585,2]
[395292954,1764589512399,-500.0,0.0001585,2]
[395292955,1764589512420,-500.0,0.0001585,2]
[395292956,1764589512441,-500.0,0.0001585,2]
[395292957,1764589512463,-500.0,0.0001585,2]
[395292958,1764589512484,-500.0,0.0001585,2]
[395292959,1764589512505,-500.0,0.0001585,2]
[395292960,1764589512528,-206.01551169,0.0001585,2]
[395292961,1764589512549,-151.0,0.00015897,2]
[395292962,1764589512571,-151.0,0.00015897,2]
[395292963,1764589512593,-299.82453933,0.00015899,2]
[395292964,1764589512618,-3225.90462074,0.000159,2]
[395293000,1764589832564,-500.0,0.00012873,2]
[395293001,1764589832574,-24.45373049,0.00012873,2]
[395293002,1764589832585,-475.54626951,0.00012873,2]
[395293003,1764589832595,-212.12966822,0.00012873,2]
[395293004,1764589832604,-173.61841926,0.00013321,2]
[395293005,1764589832614,-1000.0,0.00013421,2]
[395293006,1764589832623,-724.15226749,0.00013421,2]
[395293007,1764589832632,-1106.3053,0.0001406,2]
[395293008,1764589832641,-300.0,0.00014159,2]
[395293009,1764589832651,-506.56791917,0.00014159,2]
[395293010,1764589832680,-693.43208083,0.00014159,2]
[395293011,1764589832689,-195.0,0.0001416,2]
[395293012,1764589832698,-300.0,0.0001416,2]
[395293013,1764589832708,-195.0,0.0001416,2]
[395293014,1764589832718,-300.0,0.0001416,2]
[395293015,1764589832727,-45.76791917,0.0001416,2]
[395293016,1764589834575,-7.077e-05,0.0001416,2]
[395293017,1764589835492,-149.23201006,0.0001416,2]
[395293018,1764589835501,-195.0,0.00014308,2]
[395293019,1764589835511,-300.0,0.00014308,2]
[395293020,1764589835520,-300.0,0.00014308,2]
[395293021,1764589835530,-300.0,0.00014308,2]
[395293022,1764589835539,-198.73,0.00014474,2]
[395293023,1764589835548,-250.0,0.00014656,2]
[395293024,1764589835557,-5938.73779994,0.00014713,2]
[395293025,1764589835569,-871.98025582,0.00014713,2]
[395293026,1764589835582,-824.45059083,0.00014713,2]
[395293027,1764589835593,-1248.51135341,0.00014713,2]
[395293028,1764589835602,-166.67,0.00014924,2]
[395293029,1764589835611,-195.0,0.00015245,2]
[395293030,1764589835621,-150.0,0.00015288,2]
[395293031,1764589835630,-150.0,0.00015288,2]
[395293032,1764589835639,-150.0,0.00015288,2]
[395293033,1764589835648,-150.0,0.00015288,2]
[395293034,1764589835658,-150.0,0.00015288,2]
[395293035,1764589835668,-150.0,0.00015288,2]
[395293036,1764589835677,-150.0,0.00015288,2]
[395293037,1764589835687,-150.0,0.00015288,2]
[395293038,1764589835696,-150.0,0.00015288,2]
[395293039,1764589835705,-150.0,0.00015288,2]
[395293040,1764589835715,-150.0,0.00015288,2]
[395293041,1764589835725,-150.0,0.00015288,2]
[395293042,1764589835734,-150.0,0.00015288,2]
[395293043,1764589835743,-150.0,0.00015288,2]
[395293044,1764589835752,-1232.02,0.00015288,2]
[395293045,1764589835761,-150.0,0.00015338,2]
[395293046,1764589835770,-150.0,0.00015348,2]
[395293047,1764589835779,-150.0,0.00015377,2]
[395293048,1764589835788,-150.0,0.00015388,2]
[395293049,1764589835797,-150.0,0.00015388,2]
[395293050,1764589835806,-150.0,0.00015401,2]
[395293051,1764589835815,-150.0,0.00015409,2]
[395293052,1764589835824,-150.0,0.00015429,2]
[395293053,1764589835833,-150.0,0.00015438,2]
[395293054,1764589835842,-150.0,0.00015466,2]
[395293055,1764589835851,-150.0,0.0001547,2]
[395293056,1764589835861,-150.0,0.00015488,2]
[395293057,1764589835870,-150.0,0.00015488,2]
[395293058,1764589835879,-420.0,0.00015509,2]
[395293059,1764589835888,-150.0,0.00015513,2]
[395293060,1764589835897,-150.0,0.00015514,2]
[395293061,1764589835907,-150.0,0.0001553,2]
[395293062,1764589835917,-150.0,0.00015537,2]
[395293063,1764589835927,-150.0,0.00015556,2]
[395293064,1764589835936,-1232.02,0.00015562,2]
[395293065,1764589835945,-150.0,0.00015571,2]
[395293066,1764589835954,-150.0,0.00015571,2]
[395293067,1764589835965,-150.0,0.00015587,2]
[395293068,1764589835975,-150.0,0.00015587,2]
[395293069,1764589835985,-150.0,0.00015591,2]
[395293070,1764589835994,-150.0,0.00015627,2]
[395293071,1764589836003,-150.0,0.00015627,2]
[395293072,1764589836012,-150.0,0.00015637,2]
[395293073,1764589836022,-150.0,0.00015645,2]
[395293074,1764589836031,-151.0,0.00015648,2]
[395293075,1764589836040,-151.0,0.00015648,2]
[395293076,1764589836048,-209.87717753,0.0001565,2]
[395293077,1764589836057,-242899.38479381,0.00015651,2]
[395293081,1764589838530,-346.346,0.0001565,2]
[395293082,1764589838691,-153.654,0.0001565,2]
[395293083,1764589838701,-500.0,0.0001565,2]
[395293084,1764589838710,-500.0,0.0001565,2]
[395293085,1764589838720,-500.0,0.0001565,2]
[395293086,1764589838729,-483.64088047,0.0001565,2]
[395293087,1764589838738,-517100.61520619,0.00015651,2]
[395293089,1764589838747,-150.0,0.00015652,2]
[395293090,1764589838756,-150.0,0.00015687,2]
[395293092,1764589838766,-150.0,0.00015687,2]
[395293093,1764589838775,-150.0,0.00015712,2]
[395293094,1764589838784,-150.0,0.00015712,2]
[395293095,1764589838793,-150.0,0.00015712,2]
[395293096,1764589838803,-150.0,0.00015735,2]
[395293097,1764589838812,-150.0,0.00015737,2]
[395293098,1764589839112,-150.0,0.00015741,2]
[395293099,1764589839127,-166.67,0.00015745,2]
[395293100,1764589839136,-578.20924308,0.00015751,2]
[395293101,1764589839146,-150.0,0.00015773,2]
[395293102,1764589839156,-219.14168901,0.00015787,2]
[395293103,1764589839165,-150.0,0.00015787,2]
[395293104,1764589839174,-150.0,0.00015787,2]
[395293105,1764589839183,-891.78979043,0.000158,2]
[395293106,1764589839192,-150.0,0.00015824,2]
[395293107,1764589839202,-150.0,0.00015834,2]
[395293108,1764589839211,-1232.02,0.00015836,2]
[395293109,1764589839221,-150.0,0.00015837,2]
[395293110,1764589839230,-500.0,0.0001585,2]
[395293111,1764589839240,-500.0,0.0001585,2]
[395293112,1764589839249,-500.0,0.0001585,2]
[395293113,1764589839258,-150.0,0.0001585,2]
[395293114,1764589839267,-226.93276728,0.0001585,2]
[395293115,1764589839277,-500.0,0.0001585,2]
[395293116,1764589839286,-500.0,0.0001585,2]
[395293117,1764589839295,-150.0,0.0001585,2]
[395293118,1764589839304,-150.0,0.0001585,2]
[395293119,1764589839313,-200.0,0.0001585,2]
[395293120,1764589839322,-150.0,0.0001585,2]
[395293121,1764589839332,-150.0,0.0001585,2]
[395293122,1764589839341,-500.0,0.0001585,2]
[395293123,1764589839350,-150.0,0.0001585,2]
[395293124,1764589839360,-703.0,0.0001585,2]
[395293125,1764589839370,-150.0,0.0001585,2]
[395293126,1764589839383,-500.0,0.0001585,2]
[395293127,1764589839393,-160.09684565,0.0001585,2]
[395293128,1764589839403,-160.09796136,0.0001585,2]
[395293129,1764589839411,-500.0,0.0001585,2]
[395293130,1764589839422,-160.09780403,0.0001585,2]
[395293131,1764589839431,-500.0,0.0001585,2]
[395293132,1764589839441,-500.0,0.0001585,2]
[395293133,1764589839450,-500.0,0.0001585,2]
[395293134,1764589839460,-500.0,0.0001585,2]
[395293135,1764589839469,-500.0,0.0001585,2]
[395293136,1764589839478,-500.0,0.0001585,2]
[395293137,1764589839487,-500.0,0.0001585,2]
[395293138,1764589839496,-500.0,0.0001585,2]
[395293139,1764589839506,-160.09973475,0.0001585,2]
[395293140,1764589839516,-281.76890158,0.0001585,2]
[395293141,1764589839525,-500.0,0.0001585,2]
[395293142,1764589839534,-500.0,0.0001585,2]
[395293143,1764589839543,-500.0,0.0001585,2]
[395293144,1764589839552,-150.0,0.00015854,2]
[395293145,1764589839561,-150.0,0.00015854,2]
[395293146,1764589839570,-150.0,0.00015854,2]
[395293147,1764589839579,-150.0,0.00015854,2]
[395293148,1764589839587,-24635.077476,0.00015858,2]
[395293149,1764589839597,-23462.2120641,0.00015858,2]
[395293150,1764589839606,-150.0,0.00015887,2]
[395293151,1764589839616,-150.0,0.00015887,2]
[395293152,1764589839626,-151.0,0.00015887,2]
[395293153,1764589839635,-151.0,0.0001589,2]
[395293154,1764589839644,-151.0,0.0001589,2]
[395293155,1764589839653,-3814.9816296,0.0001589,2]
[395293156,1764589839662,-8000.0,0.0001589,2]
[395293157,1764589839671,-1000.0,0.0001589,2]
[395293158,1764589839679,-4000.0,0.0001589,2]
[395293159,1764589839688,-1000.0,0.0001589,2]
[395293160,1764589839697,-1000.0,0.0001589,2]
[395293161,1764589839707,-1000.0,0.0001589,2]
[395293162,1764589839715,-1000.0,0.0001589,2]
[395293163,1764589839724,-560.21662389,0.0001589,2]
[395293164,1764589839733,-1000.0,0.0001589,2]
[395293165,1764589839742,-1000.0,0.0001589,2]
[395293166,1764589839751,-312.0,0.0001589,2]
[395293167,1764589839760,-1000.0,0.0001589,2]
[395293168,1764589839769,-160.0,0.0001589,2]
[395293169,1764589839777,-3000.0,0.0001589,2]
[395293170,1764589839786,-530.83383746,0.0001589,2]
[395293171,1764589839795,-3000.0,0.0001589,2]
[395293172,1764589839804,-3000.0,0.0001589,2]
[395293173,1764589839813,-3000.0,0.0001589,2]
[395293174,1764589839822,-3000.0,0.0001589,2]
[395293175,1764589839831,-3000.0,0.0001589,2]
[395293176,1764589839840,-3000.0,0.0001589,2]
[395293177,1764589839849,-3000.0,0.0001589,2]
[395293178,1764589839858,-3000.0,0.0001589,2]
[395293179,1764589839868,-3000.0,0.0001589,2]
[395293180,1764589839877,-3000.0,0.0001589,2]
[395293181,1764589839887,-3000.0,0.0001589,2]
[395293182,1764589839897,-3000.0,0.0001589,2]
[395293183,1764589839906,-3000.0,0.0001589,2]
[395293184,1764589839916,-194.72792766,0.0001589,2]
[395293185,1764589839925,-1400.0,0.0001589,2]
[395293186,1764589839935,-248.71531821,0.0001589,2]
[395293187,1764589839943,-500.0,0.0001589,2]
[395293188,1764589839953,-500.0,0.0001589,2]
[395293189,1764589839964,-500.0,0.0001589,2]
[395293190,1764589839973,-500.0,0.0001589,2]
[395293191,1764589839983,-500.0,0.0001589,2]
[395293192,1764589839994,-500.0,0.0001589,2]
[395293193,1764589840003,-500.0,0.0001589,2]
[395293194,1764589840017,-500.0,0.0001589,2]
[395293195,1764589840026,-500.0,0.0001589,2]
[395293196,1764589840038,-500.0,0.0001589,2]
[395293197,1764589840048,-500.0,0.0001589,2]
[395293198,1764589840056,-500.0,0.0001589,2]
[395293199,1764589840066,-500.0,0.0001589,2]
[395293200,1764589840076,-500.0,0.0001589,2]
[395293201,1764589840089,-500.0,0.0001589,2]
[395293202,1764589840098,-500.0,0.0001589,2]
[395293203,1764589840108,-500.0,0.0001589,2]
[395293204,1764589840119,-425.21848428,0.0001589,2]
[395293205,1764589840129,-500.0,0.0001589,2]
[395293206,1764589840138,-500.0,0.0001589,2]
[395293207,1764589840147,-500.0,0.0001589,2]
[395293209,1764589840158,-500.0,0.0001589,2]
[395293210,1764589840167,-300.0,0.0001589,2]
[395293211,1764589840176,-1000.0,0.0001589,2]
[395293212,1764589840185,-1000.0,0.0001589,2]
[395293214,1764589840194,-1000.0,0.0001589,2]
[395293215,1764589840203,-1000.0,0.0001589,2]
[395293216,1764589840213,-10000.0,0.0001589,2]
[395293217,1764589840225,-10000.0,0.0001589,2]
[395293218,1764589840235,-3476.15946739,0.0001589,2]
[395293219,1764589840245,-250.0,0.0001589,2]
[395293220,1764589840255,-1000.0,0.0001589,2]
[395293221,1764589840264,-1000.0,0.0001589,2]
[395293222,1764589840273,-1000.0,0.0001589,2]
[395293223,1764589840283,-234.67943684,0.0001589,2]
[395293224,1764589840292,-151.0,0.0001589,2]
[395293225,1764589840301,-2500.0,0.0001589,2]
[395293226,1764589840311,-2500.0,0.0001589,2]
[395293227,1764589840320,-2458.72839442,0.0001589,2]
[395293228,1764589840331,-194.72792767,0.0001589,2]